bitfinex-derivatives/quotes_SOLF0:USTF0_20260114
["timestamp","ask_amount","ask_price","bid_price","bid_amount"]
[1768417424236,6.1526,146.3,146.24,12.32419153]
[1768417424430,6.1518,146.32,146.24,12.32419153]
[1768417424937,6.1511,146.33,146.26,12.32419153]
[1768417425927,107.25818584,146.36,146.26,12.32419153]
[1768417426136,6.1515,146.32,146.26,12.32419153]
[1768417427126,6.1522,146.31,146.23,12.32419153]
[1768417427840,6.1525,146.3,146.23,12.32419153]
[1768417428037,11.58878584,146.31,146.23,12.32419153]
[1768417429441,11.58878584,146.31,146.22,6.1554]
[1768417429941,6.1528,146.29,146.2,18.48039153]
[1768417430127,6.1528,146.29,146.2,12.32419153]
[1768417430536,6.1533,146.28,146.21,6.156]
[1768417430839,11.36643611,146.29,146.2,12.32419153]
[1768417431539,17.51953611,146.29,146.2,18.48059153]
[1768417431740,17.51953611,146.29,146.21,11.53878162]
[1768417433940,11.36643611,146.29,146.22,11.53878162]
[1768417434244,11.36643611,146.35,146.22,11.53878162]
[1768417435845,11.36643611,146.33,146.25,6.1543]
[1768417436747,11.36643611,146.33,146.24,11.53878162]
[1768417437042,11.36643611,146.33,146.15,260.86733766]
[1768417437043,11.36643611,146.32,146.21,11.53878162]
[1768417438740,6.1529,146.29,146.21,11.53878162]
[1768417438944,6.1529,146.29,146.22,6.1556]
[1768417440048,17.51933611,146.29,146.21,11.53878162]
[1768417440249,11.36643611,146.28,146.21,11.53878162]
[1768417440742,11.36643611,146.28,146.22,6.1556]
[1768417441056,11.36643611,146.28,146.21,11.53878162]
[1768417441057,17.51963611,146.28,146.21,11.53878162]
[1768417441740,5.33880696,146.31,146.2,6.1562]
[1768417441741,17.52013611,146.27,146.2,6.1562]
[1768417442448,11.36643611,146.27,146.2,6.1562]
[1768417442744,6.1531,146.29,146.21,11.53878162]
[1768417442949,11.36643611,146.3,146.21,11.53878162]
[1768417443843,11.36643611,146.3,146.22,6.1556]
[1768417444154,11.36643611,146.3,146.18,11.53878162]
[1768417444447,6.1532,146.28,146.2,6.1563]
[1768417444944,11.36643611,146.26,146.18,11.53878162]
[1768417445449,6.1561,146.21,146.15,11.53878162]
[1768417445642,6.1561,146.21,146.11,11.53878162]
[1768417446843,6.1561,146.21,146.13,17.69808162]
[1768417448244,6.1561,146.21,146.14,6.159]
[1768417448545,6.1556,146.23,146.14,11.53878162]
[1768417449141,6.1556,146.23,146.15,6.1585]
[1768417449345,6.1546,146.25,146.14,11.53878162]
[1768417449541,11.36643611,146.25,146.14,11.53878162]
[1768417449844,11.36643611,146.25,146.15,6.1583]
[1768417450353,17.52213611,146.22,146.14,11.53878162]
[1768417450739,11.36643611,146.22,146.14,11.53878162]
[1768417451145,107.08593611,146.28,146.17,11.53878162]
[1768417451452,11.36643611,146.27,146.17,11.53878162]
[1768417451647,6.1545,146.25,146.17,17.69638162]
[1768417451849,11.36643611,146.27,146.17,11.53878162]
[1768417452439,17.52023611,146.27,146.18,6.1572]
[1768417452644,11.36643611,146.27,146.18,6.1572]
[1768417452850,11.36643611,146.27,146.17,11.53878162]
[1768417453442,6.1545,146.25,146.17,17.69648162]
[1768417454252,17.52143611,146.24,146.15,6.1584]
[1768417454553,11.36643611,146.24,146.15,17.69718162]
[1768417454860,6.1555,146.23,146.15,11.53878162]
[1768417455156,17.52193611,146.23,146.15,11.53878162]
[1768417455357,17.52223611,146.22,146.15,11.53878162]
[1768417455756,17.52223611,146.22,146.14,80.8]
[1768417457654,17.52223611,146.22,146.14,92.33878162]
[1768417457850,17.52223611,146.22,146.14,98.49778162]
[1768417458263,17.52223611,146.22,146.14,17.69778162]
[1768417460661,6.1562,146.21,146.14,17.69778162]
[1768417460962,11.36643611,146.22,146.15,6.1585]
[1768417461261,6.1549,146.24,146.16,10.96330617]
[1768417462777,6.1549,146.24,146.16,17.12140617]
[1768417463974,10.89715974,146.25,146.16,17.12140617]
[1768417463975,6.1554,146.23,146.16,10.96330617]
[1768417465573,6.1558,146.22,146.16,10.96330617]
[1768417466174,10.89715974,146.23,146.16,10.96330617]
[1768417467478,6.1557,146.22,146.16,10.96330617]
[1768417468683,6.1562,146.21,146.16,10.96330617]
[1768417469375,12.99381084,146.25,146.16,13.05995727]
[1768417470372,6.1549,146.24,146.17,17.12100617]
[1768417471373,6.1553,146.23,146.17,10.96330617]
[1768417471572,10.89715974,146.25,146.17,10.96330617]
[1768417471774,10.89715974,146.23,146.12,10.96330617]
[1768417472078,6.1563,146.21,146.14,17.12200617]
[1768417473186,6.1565,146.2,146.14,10.96330617]
[1768417473378,10.89715974,146.21,146.14,10.96330617]
[1768417473971,17.05325974,146.21,146.14,17.12230617]
[1768417475786,6.1557,146.23,146.15,17.12190617]
[1768417476687,6.1557,146.22,146.15,17.12190617]
[1768417476891,10.89715974,146.26,146.17,10.96330617]
[1768417477884,6.1552,146.24,146.17,10.96330617]
[1768417479886,6.1553,146.23,146.17,10.96330617]
[1768417480788,382.7767,146.32,145.98,304.71435431]
[1768417480789,179.0,146.37,146.29,95.7091]
[1768417480993,152.52623459,146.37,146.28,95.7113]
[1768417481290,10.89715974,146.44,146.34,3.2756668]
[1768417481291,6.1468,146.44,146.34,3.2756668]
[1768417481481,10.89715974,146.45,146.29,176.5268]
[1768417481681,10.89715974,146.45,146.36,3.2756668]
[1768417481885,10.89715974,146.45,146.38,3.2756668]
[1768417482188,80.82,146.49,146.36,95.6606]
[1768417482189,10.89715974,146.47,146.36,95.6606]
[1768417482392,10.89715974,146.47,146.39,3.2756668]
[1768417482688,176.37,146.54,146.41,3.2756668]
[1768417482888,176.37,146.54,146.38,95.6472]
[1768417482889,176.37,146.54,146.43,3.2756668]
[1768417483084,80.82,146.54,146.43,3.2756668]
[1768417483286,80.82,146.54,146.42,80.82]
[1768417483484,95.5332,146.57,146.42,182.5907]
[1768417483685,176.3067,146.58,146.42,182.5907]
[1768417483980,95.5079,146.6,146.47,8.65587869]
[1768417484290,95.5246,146.58,146.47,89.43587869]
[1768417484486,95.5175,146.59,146.47,80.78]
[1768417484692,10.89715974,146.58,146.47,80.78]
[1768417485293,10.89715974,146.58,146.48,8.65587869]
[1768417485497,10.89715974,146.58,146.49,95.5757]
[1768417485989,10.89715974,146.62,146.51,101.7074]
[1768417486189,10.89715974,146.62,146.52,80.76]
[1768417487792,10.89715974,146.6,146.48,80.74]
[1768417488183,10.89715974,146.59,146.48,80.74]
[1768417488882,10.89715974,146.59,146.49,95.5727]
[1768417489387,10.89715974,146.59,146.51,6.1433]
[1768417489584,10.89715974,146.59,146.48,184.97507869]
[1768417489998,10.89715974,146.59,146.5,6.1436]
[1768417490989,13.41939231,146.63,146.52,6.1431]
[1768417491191,13.41939231,146.63,146.53,80.7]
[1768417493295,13.41939231,146.63,146.53,182.3909]
[1768417493792,4.89184828,146.63,146.54,7.56325778]
[1768417493989,4.89184828,146.63,146.55,7.56325778]
[1768417494198,6.1368,146.67,146.56,88.24325778]
[1768417494399,6.1368,146.67,146.57,7.56325778]
[1768417494696,6.1368,146.67,146.58,7.56325778]
[1768417494995,80.68,146.69,146.59,7.56325778]
[1768417495191,80.68,146.69,146.6,7.56325778]
[1768417495389,80.68,146.69,146.61,7.56325778]
[1768417495700,80.68,146.69,146.62,7.56325778]
[1768417495900,80.68,146.69,146.56,86.8212]
[1768417495901,13.41939231,146.67,146.56,80.66]
[1768417498291,13.41939231,146.67,146.55,6.1415]
[1768417498500,13.41939231,146.67,146.56,80.64]
[1768417500199,13.41939231,146.65,146.5,95.5723]
[1768417500400,13.41939231,146.63,146.48,95.5853]
[1768417500599,13.41939231,146.59,146.49,80.64]
[1768417500998,176.1311,146.63,146.5,95.5699]
[1768417500999,13.41939231,146.62,146.5,95.5699]
[1768417501394,13.41939231,146.62,146.52,6.1428]
[1768417501800,13.41939231,146.62,146.52,95.5596]
[1768417502003,6.1378,146.65,146.55,6.1418]
[1768417502004,13.41939231,146.65,146.55,6.1418]
[1768417502904,13.41939231,146.65,146.51,104.21597869]
[1768417502905,13.41939231,146.56,146.45,20.47]
[1768417503105,13.41939231,146.54,146.39,95.6411]
[1768417503309,13.41939231,146.52,146.39,95.6401]
[1768417503608,13.41939231,146.52,146.38,176.2709]
[1768417503807,13.41939231,146.52,146.4,95.6369]
[1768417503998,13.41939231,146.52,146.41,6.1474]
[1768417504406,13.41939231,146.52,146.4,95.6359]
[1768417504605,13.41939231,146.52,146.42,6.147]
[1768417505807,19.56289231,146.52,146.4,6.1481]
[1768417506412,13.41939231,146.49,146.38,6.1488]
[1768417506610,13.41939231,146.49,146.38,86.7888]
[1768417507007,13.41939231,146.49,146.4,6.148]
[1768417507809,13.41939231,146.49,146.41,7.32493492]
[1768417508115,13.41939231,146.49,146.42,7.32493492]
[1768417508318,13.41939231,146.49,146.43,3.492e-05]
[1768417508514,13.41939231,146.49,146.38,86.7888]
[1768417508812,13.41939231,146.49,146.3,478.4938]
[1768417508813,13.41939231,146.45,146.3,191.3999]
[1768417509016,13.41939231,146.44,146.31,80.64]
[1768417509714,13.41939231,146.42,146.31,80.64]
[1768417510311,19.56729231,146.41,146.31,80.64]
[1768417510921,13.41939231,146.4,146.31,80.64]
[1768417511214,13.41939231,146.39,146.26,95.729]
[1768417511416,13.41939231,146.39,146.24,95.7363]
[1768417511716,13.41939231,146.39,146.25,176.3943]
[1768417512219,13.41939231,146.39,146.28,95.716]
[1768417513316,13.41939231,146.39,146.29,6.1524]
[1768417513915,13.41939231,146.39,146.27,6.1534]
[1768417514518,13.41939231,146.38,146.25,6.1543]
[1768417514711,13.41939231,146.38,146.26,80.68]
[1768417515815,13.41939231,146.37,146.27,6.1535]
[1768417516313,13.41939231,146.36,146.26,80.68]
[1768417516924,13.41939231,146.36,146.25,86.8344]
[1768417517121,13.41939231,146.36,146.26,6.1537]
[1768417518323,10.00201973,146.36,146.26,6.1537]
[1768417520319,10.00201973,146.36,146.27,7.24788075]
[1768417520520,10.00201973,146.36,146.28,7.24788075]
[1768417520814,10.00201973,146.36,146.29,7.24788075]
[1768417521020,4.876013,146.36,146.3,7.24788075]
[1768417521225,4.876013,146.36,146.31,7.18716479]
[1768417521425,80.7,146.4,146.32,7.18716479]
[1768417521621,6.1479,146.41,146.33,7.18716479]
[1768417521919,176.315,146.44,146.34,7.18716479]
[1768417521920,80.7,146.44,146.34,7.18716479]
[1768417522125,80.7,146.44,146.35,7.18716479]
[1768417522421,80.7,146.44,146.36,7.18716479]
[1768417522612,80.7,146.44,146.37,7.18716479]
[1768417522817,6.147,146.43,146.32,6.1511]
[1768417523125,16.58120523,146.42,146.32,6.1511]
[1768417523324,16.58120523,146.42,146.33,6.1508]
[1768417523719,22.72740523,146.45,146.33,95.68]
[1768417524519,16.58120523,146.44,146.35,6.15]
[1768417526431,16.58120523,146.43,146.32,189.6886]
[1768417526617,16.58120523,146.43,146.32,94.0]
[1768417527023,16.58120523,146.43,146.3,80.72]
[1768417527222,16.58120523,146.43,146.26,189.7289]
[1768417527223,16.58120523,146.39,146.26,189.7289]
[1768417527429,16.58120523,146.39,146.27,80.72]
[1768417527928,16.58120523,146.39,146.28,95.7163]
[1768417528924,16.58120523,146.39,146.3,6.1522]
[1768417531030,22.72990523,146.39,146.3,6.1522]
[1768417531231,16.58120523,146.38,146.3,6.1522]
[1768417531631,16.58120523,146.37,146.28,6.153]
[1768417531928,16.58120523,146.37,146.26,80.72]
[1768417532933,22.73120523,146.36,146.26,86.8737]
[1768417533135,22.73120523,146.36,146.26,80.72]
[1768417533329,16.58120523,146.36,146.29,6.1526]
[1768417535430,16.58120523,146.36,146.27,6.1532]
[1768417535831,16.58120523,146.36,146.26,174.72]
[1768417536938,16.58120523,146.36,146.29,6.1526]
[1768417537133,16.58120523,146.35,146.25,80.72]
[1768417538833,6.1508,146.34,146.25,86.8742]
[1768417539132,6.1508,146.34,146.18,95.7757]
[1768417539133,95.7106,146.29,146.14,95.8033]
[1768417539334,6.1545,146.25,146.13,95.8091]
[1768417539531,95.7231,146.27,146.12,181.89932995]
[1768417540440,95.72,146.28,146.13,95.8143]
[1768417541331,181.76932995,146.29,146.16,6.1579]
[1768417541332,16.58120523,146.26,146.16,6.1579]
[1768417541533,16.58120523,146.26,146.14,95.8075]
[1768417542032,16.58120523,146.26,146.15,101.13972995]
[1768417542930,22.73420523,146.29,146.17,95.7883]
[1768417543135,22.73420523,146.29,146.18,80.74]
[1768417543337,6.1521,146.31,146.19,95.7752]
[1768417543536,16.58120523,146.32,146.2,95.7687]
[1768417544234,16.58120523,146.32,146.21,101.10082995]
[1768417544440,6.1509,146.34,146.21,101.10082995]
[1768417544641,6.1509,146.34,146.22,95.7551]
[1768417544935,6.1509,146.34,146.23,80.76]
[1768417545935,16.58120523,146.35,146.24,95.7425]
[1768417546939,16.58120523,146.35,146.26,6.1538]
[1768417547743,16.58120523,146.35,146.27,6.1534]
[1768417548139,16.58120523,146.35,146.28,80.76]
[1768417549834,16.58120523,146.35,146.28,86.9129]
[1768417550235,16.58120523,146.39,146.28,80.76]
[1768417550532,16.58120523,146.39,146.26,80.76]
[1768417551144,26.19300245,146.38,146.29,6.1525]
[1768417551534,20.04390245,146.38,146.29,6.1525]
[1768417552634,20.04390245,146.38,146.27,6.1534]
[1768417553837,20.04390245,146.37,146.27,6.1534]
[1768417555049,20.04390245,146.37,146.28,6.153]
[1768417558644,20.04390245,146.37,146.28,100.153]
[1768417559850,20.04390245,146.37,146.29,6.1525]
[1768417560246,26.19330245,146.37,146.29,6.1525]
[1768417560447,20.04390245,146.37,146.28,94.0]
[1768417560849,6.1499,146.36,146.28,94.0]
[1768417561049,20.04390245,146.37,146.28,100.153]
[1768417561257,20.04390245,146.4,146.28,94.0]
[1768417561447,20.04390245,146.4,146.29,5.33872995]
[1768417561845,26.19100245,146.43,146.32,5.33872995]
[1768417562050,100.93022995,146.48,146.33,80.74]
[1768417562051,20.04390245,146.47,146.33,80.74]
[1768417562553,20.04390245,146.45,146.33,80.74]
[1768417563554,26.19160245,146.41,146.33,80.74]
[1768417564253,6.1482,146.4,146.33,80.74]
[1768417564454,20.04390245,146.41,146.33,80.74]
[1768417564755,95.6161,146.44,146.28,189.7131]
[1768417564756,20.04390245,146.4,146.3,80.74]
[1768417564958,20.04390245,146.4,146.29,80.74]
[1768417565260,6.1494,146.37,146.29,80.74]
[1768417565462,26.19330245,146.37,146.29,80.74]
[1768417565955,20.04390245,146.36,146.29,80.74]
[1768417566161,20.04390245,146.36,146.29,86.8926]
[1768417567153,20.04390245,146.36,146.3,6.1522]
[1768417567359,26.19250245,146.39,146.3,6.1522]
[1768417567555,20.04390245,146.39,146.3,100.1522]
[1768417572170,26.19250245,146.39,146.3,100.1522]
[1768417572966,20.04390245,146.34,146.26,80.74]
[1768417573166,100.98632995,146.39,146.26,80.74]
[1768417573167,20.04390245,146.37,146.26,80.74]
[1768417574073,26.19360245,146.37,146.28,6.1531]
[1768417576370,20.04390245,146.37,146.29,6.1526]
[1768417576968,26.19340245,146.37,146.27,6.1533]
[1768417577474,20.04390245,146.37,146.26,176.4663]
[1768417578878,20.04390245,146.37,146.29,6.1526]
[1768417579169,20.04390245,146.37,146.29,100.1526]
[1768417579773,20.04390245,146.4,146.3,6.1522]
[1768417580078,20.04390245,146.4,146.31,80.74]
[1768417580577,20.04390245,146.4,146.32,6.1513]
[1768417581072,22.01949509,146.43,146.31,80.74]
[1768417581383,22.01949509,146.43,146.32,95.6886]
[1768417582067,22.01949509,146.46,146.33,95.6811]
[1768417582271,22.01949509,146.49,146.35,95.6674]
[1768417582471,22.01949509,146.49,146.36,80.74]
[1768417582671,6.1449,146.48,146.39,6.1482]
[1768417583078,28.16439509,146.48,146.39,6.1482]
[1768417583571,22.01949509,146.46,146.38,80.74]
[1768417584566,22.01949509,146.44,146.35,6.1499]
[1768417584767,22.01949509,146.44,146.35,86.8699]
[1768417585171,22.01949509,146.44,146.36,6.1496]
[1768417588682,22.01949509,146.44,146.37,6.1492]
[1768417590876,22.01949509,146.44,146.37,100.1492]
[1768417591079,6.1457,146.46,146.38,6.1488]
[1768417591284,22.01949509,146.47,146.37,94.0]
[1768417591486,22.01949509,146.47,146.38,95.6502]
[1768417591675,22.01949509,146.53,146.42,6.1471]
[1768417591878,22.01949509,146.52,146.42,80.7]
[1768417592078,22.01949509,146.55,146.42,80.7]
[1768417592274,22.01949509,146.53,146.43,6.1465]
[1768417592682,22.01949509,146.53,146.42,174.7]
[1768417593788,6.1436,146.51,146.42,180.8472]
[1768417594679,22.01949509,146.52,146.42,174.7]
[1768417595889,22.01949509,146.52,146.44,6.1463]
[1768417596682,22.01949509,146.52,146.45,6.1459]
[1768417597288,22.01949509,146.54,146.46,6.1455]
[1768417598089,28.16179509,146.54,146.46,6.1455]
[1768417598388,22.01949509,146.53,146.46,6.1455]
[1768417599389,22.01949509,146.53,146.42,270.3207]
[1768417599786,22.01949509,146.52,146.42,174.7]
[1768417599985,22.01949509,146.52,146.42,174.68]
[1768417600490,22.01949509,146.49,146.42,174.68]
[1768417600684,22.01949509,146.49,146.42,80.68]
[1768417601487,22.01949509,146.48,146.37,94.0]
[1768417601691,22.01949509,146.48,146.38,80.68]
[1768417602789,28.16439509,146.48,146.39,6.1485]
[1768417603495,22.01949509,146.46,146.38,80.68]
[1768417604094,28.16509509,146.46,146.38,80.68]
[1768417604695,6.1461,146.45,146.38,80.68]
[1768417604896,28.16559509,146.45,146.38,174.68]
[1768417605490,22.01949509,146.45,146.38,180.8288]
[1768417605892,22.01949509,146.48,146.38,174.68]
[1768417606702,28.16429509,146.48,146.4,6.148]
[1768417609502,6.1443,146.5,146.41,6.1475]
[1768417609798,28.16379509,146.5,146.42,80.68]
[1768417610000,28.16379509,146.5,146.42,174.68]
[1768417610395,28.16379509,146.5,146.42,180.827]
[1768417610604,22.01949509,146.5,146.42,174.68]
[1768417611003,24.15674287,146.54,146.42,174.68]
[1768417611299,24.15674287,146.54,146.42,270.3017]
[1768417611698,24.15674287,146.54,146.46,6.1455]
[1768417611906,24.15674287,146.54,146.47,80.68]
[1768417612794,24.15674287,146.54,146.47,86.825]
[1768417614500,24.15674287,146.56,146.48,6.1447]
[1768417614804,24.15674287,146.56,146.47,80.68]
[1768417615801,30.29824287,146.56,146.47,86.8251]
[1768417617299,30.29824287,146.56,146.47,180.8251]
[1768417617701,6.1419,146.55,146.47,180.8251]
[1768417618208,24.15674287,146.54,146.47,100.1451]
[1768417618400,30.29904287,146.54,146.47,94.0]
[1768417618599,24.15674287,146.53,146.47,94.0]
[1768417619402,30.29974287,146.53,146.45,94.0]
[1768417619705,30.29974287,146.53,146.45,174.66]
[1768417620106,30.29974287,146.53,146.45,180.806]
[1768417622209,24.15674287,146.53,146.45,174.66]
[1768417622416,24.15674287,146.56,146.45,270.2622]
[1768417622601,24.15674287,146.56,146.45,278.91850789]
[1768417623006,30.29714287,146.59,146.48,95.585]
[1768417623214,30.29714287,146.59,146.49,80.66]
[1768417623414,24.15674287,146.59,146.49,80.66]
[1768417624812,24.15674287,146.59,146.49,174.66]
[1768417625711,24.15674287,146.59,146.52,6.143]
[1768417625903,24.15674287,146.59,146.53,80.64]
[1768417626309,24.15674287,146.62,146.53,80.64]
[1768417626706,24.15674287,146.59,146.53,80.64]
[1768417627214,24.15674287,146.56,146.49,94.0]
[1768417627519,24.15674287,146.56,146.49,80.64]
[1768417628714,6.1411,146.57,146.42,198.28080789]
[1768417628715,24.15674287,146.55,146.42,198.28080789]
[1768417629017,24.15674287,146.55,146.43,80.64]
[1768417629818,6.1427,146.53,146.44,6.1463]
[1768417630414,24.15674287,146.52,146.4,95.6321]
[1768417630623,24.15674287,146.52,146.41,80.64]
[1768417631117,24.15674287,146.52,146.42,6.1469]
[1768417631423,24.15674287,146.52,146.41,80.64]
[1768417631615,24.15674287,146.52,146.43,6.1468]
[1768417632926,30.29994287,146.52,146.43,6.1468]
[1768417635030,6.144,146.5,146.43,94.0]
[1768417636027,30.30014287,146.52,146.43,94.0]
[1768417636222,24.15674287,146.52,146.43,94.0]
[1768417636819,24.15674287,146.5,146.42,94.0]
[1768417637331,24.15674287,146.47,146.4,80.64]
[1768417637526,24.15674287,146.47,146.35,230.70863027]
[1768417637722,24.15674287,146.47,146.36,80.64]
[1768417637921,30.30284287,146.45,146.36,86.7896]
[1768417639331,24.15674287,146.44,146.36,86.7896]
[1768417639525,24.15674287,146.44,146.36,80.64]
[1768417639823,24.15674287,146.43,146.35,230.70863027]
[1768417640325,24.15674287,146.43,146.34,6.1503]
[1768417640722,24.15674287,146.43,146.35,6.1501]
[1768417641937,24.15674287,146.43,146.33,80.64]
[1768417642920,26.05339214,146.42,146.33,80.64]
[1768417643332,26.05339214,146.42,146.33,86.791]
[1768417643533,26.05339214,146.42,146.33,180.791]
[1768417645321,32.20079214,146.42,146.33,174.64]
[1768417646729,32.20079214,146.42,146.33,180.7907]
[1768417646935,26.05339214,146.42,146.33,180.7907]
[1768417647933,32.20069214,146.42,146.33,180.7907]
[1768417648724,6.1477,146.41,146.33,180.7907]
[1768417649328,26.05339214,146.42,146.33,180.7907]
[1768417649723,26.05339214,146.42,146.34,6.1505]
[1768417652439,26.05339214,146.42,146.33,174.64]
[1768417653540,6.1478,146.41,146.33,180.791]
[1768417655043,26.05339214,146.42,146.33,174.64]
[1768417656841,6.148,146.41,146.33,180.791]
[1768417657138,6.148,146.41,146.33,174.64]
[1768417657340,6.1481,146.4,146.34,80.7]
[1768417657941,26.05339214,146.41,146.34,80.7]
[1768417658642,26.05339214,146.41,146.34,6.1506]
[1768417658844,32.20129214,146.41,146.33,94.0]
[1768417659341,26.05339214,146.41,146.34,6.1506]
[1768417659546,26.05339214,146.41,146.34,86.8506]
[1768417661147,26.05339214,146.41,146.34,80.7]
[1768417662748,26.05339214,146.41,146.34,86.8506]
[1768417663843,28.14473168,146.45,146.35,2.09133954]
[1768417664145,28.14473168,146.45,146.35,96.09133954]
[1768417664146,26.05339214,146.45,146.35,96.09133954]
[1768417664654,26.05339214,146.45,146.38,6.1489]
[1768417664841,28.14473168,146.48,146.39,2.09133954]
[1768417665241,32.19959214,146.45,146.38,80.7]
[1768417665446,26.05339214,146.43,146.35,94.0]
[1768417665744,26.05339214,146.43,146.35,80.7]
[1768417666248,26.05339214,146.43,146.31,94.0]
[1768417666249,34.29293168,146.4,146.33,80.7]
[1768417666437,32.20159214,146.4,146.33,80.7]
[1768417667242,6.1475,146.42,146.33,82.79133954]
[1768417667438,26.05339214,146.43,146.35,2.09133954]
[1768417668347,26.05339214,146.46,146.37,2.09133954]
[1768417668658,26.05339214,146.46,146.37,82.79133954]
[1768417669150,32.19919214,146.46,146.38,6.1489]
[1768417669650,32.19919214,146.46,146.37,88.94063954]
[1768417670944,32.19919214,146.46,146.37,80.7]
[1768417670945,25.80352002,146.44,146.37,80.7]
[1768417671549,25.80352002,146.44,146.37,86.8493]
[1768417677752,25.80352002,146.44,146.38,6.1489]
[1768417678258,31.95002002,146.44,146.37,86.8493]
[1768417678846,31.95002002,146.44,146.37,180.8493]
[1768417682151,25.80352002,146.44,146.37,174.7]
[1768417682353,2.09133954,146.43,146.37,94.0]
[1768417682552,25.80352002,146.42,146.34,80.7]
[1768417682749,25.80352002,146.42,146.34,174.7]
[1768417683556,25.80352002,146.42,146.34,180.8506]
[1768417684162,25.80352002,146.42,146.35,8.24153954]
[1768417686366,25.80352002,146.41,146.34,94.0]
[1768417686562,25.80352002,146.41,146.34,174.7]
[1768417686759,25.80352002,146.41,146.34,80.7]
[1768417689865,6.1485,146.4,146.34,80.7]
[1768417690365,25.80352002,146.41,146.34,82.79133954]
[1768417690567,25.80352002,146.41,146.34,176.79133954]
[1768417690861,27.89485956,146.44,146.34,176.79133954]
[1768417691065,6.1468,146.43,146.34,176.79133954]
[1768417692767,6.1468,146.43,146.35,6.1501]
[1768417692967,6.1473,146.42,146.35,6.1501]
[1768417694369,6.1468,146.43,146.35,6.1501]
[1768417694866,27.89485956,146.44,146.34,182.94183954]
[1768417695771,6.1475,146.42,146.34,182.94183954]
[1768417696265,6.1475,146.42,146.35,8.24153954]
[1768417696461,6.1475,146.42,146.35,102.24153954]
[1768417696766,25.80352002,146.44,146.35,96.09133954]
[1768417696973,27.89485956,146.47,146.37,2.09133954]
[1768417697169,27.89485956,146.47,146.38,80.7]
[1768417697371,6.1464,146.44,146.38,80.7]
[1768417699170,25.80352002,146.45,146.38,80.7]
[1768417700875,31.94962002,146.45,146.38,80.7]
[1768417701977,25.80352002,146.45,146.38,86.8488]
[1768417702184,25.80352002,146.45,146.38,180.8488]
[1768417702874,31.94962002,146.45,146.38,174.7]
[1768417705487,25.80352002,146.45,146.38,180.8488]
[1768417706582,26.0090542,146.5,146.4,6.148]
[1768417706791,28.10039374,146.55,146.45,2.09133954]
[1768417707082,26.0090542,146.52,146.44,80.7]
[1768417707282,26.0090542,146.52,146.45,2.09133954]
[1768417707485,28.10039374,146.55,146.45,2.09133954]
[1768417708085,34.24249374,146.55,146.45,8.23723954]
[1768417708288,26.0090542,146.54,146.45,8.23723954]
[1768417708586,6.1428,146.53,146.45,2.09133954]
[1768417708788,32.1518542,146.53,146.45,2.09133954]
[1768417709589,26.0090542,146.52,146.42,82.77133954]
[1768417709787,26.0090542,146.52,146.44,2.09133954]
[1768417710586,28.10039374,146.55,146.46,2.09133954]
[1768417711288,32.1513542,146.54,146.46,2.09133954]
[1768417712389,32.1518542,146.53,146.44,2.09133954]
[1768417712990,32.1518542,146.53,146.44,8.23763954]
[1768417716390,32.1522542,146.52,146.44,8.23763954]
[1768417717293,32.1522542,146.52,146.44,6.1463]
[1768417717595,32.1526542,146.51,146.43,3.26248495]
[1768417717784,32.1526542,146.51,146.43,94.0]
[1768417717989,32.1526542,146.51,146.44,80.66]
[1768417718188,26.0090542,146.51,146.44,174.66]
[1768417719189,26.0090542,146.51,146.44,180.8064]
[1768417719390,26.0090542,146.55,146.44,177.92248495]
[1768417720894,32.1513542,146.54,146.45,6.1459]
[1768417721799,26.0090542,146.54,146.45,6.1459]
[1768417721997,26.0090542,146.57,146.45,189.6012]
[1768417722198,26.0090542,146.57,146.48,3.26248495]
[1768417722399,26.0090542,146.57,146.49,80.66]
[1768417722795,26.0090542,146.61,146.49,80.66]
[1768417723299,26.0090542,146.59,146.49,80.66]
[1768417723997,26.0090542,146.59,146.5,6.1436]
[1768417724502,26.0090542,146.59,146.51,6.1434]
[1768417725296,32.1492542,146.59,146.51,6.1434]
[1768417725597,32.1492542,146.59,146.49,86.804]
[1768417725802,6.1406,146.58,146.49,86.804]
[1768417726002,26.0090542,146.57,146.49,86.804]